[Event "Wuerttemberg Rapid Teams 2024"]
[Site "B?blingen, Germany"]
[Date "2024.04.13"]
[Round "3.31"]
[White "Sulzbacher, Kurt"]
[Black "Mi Plaza, Luis Leo Manuel"]
[Result "0-1"]
[ECO "A25"]
[WhiteElo "1976"]
[BlackElo "1413"]
[Annotator "TA"]
[PlyCount "48"]
[EventDate "2024.04.13"]
[EventType "team-tourn"]
[SourceTitle "playchess.com"]
[Source "ChessBase"]
[SourceQuality "1"]
[TimeControl "900+5"]

{[%evp 9,48,32,28,39,40,35,89,-48,-52,-141,-135,-93,-116,-477,-275,-593,-430,-407,-375,-461,-254,-711,-664,-29983,-2075,-1435,-2277,-2945,-2642,-4890,-3864,-29982,-29983,-29987,-29986,-29995,-29996,-29996,-29996,-29996,-29997]} 1. c4 {[%emt 0:00:01]} e5 {[%emt 0:00:02]} 2. Nc3 {[%emt 0:00:01]} Nc6 {[%emt 0:00:01]} 3. g3 {[%emt 0:00:07]} f5 {[%emt 0:00:02]} 4. Bg2 {[%emt 0:00:10]} Nf6 {[%emt 0:00:02]} 5. e3 {[%emt 0:00:03]} d5 {[%emt 0:00:01]} 6. cxd5 {[%emt 0:00:07]} (6. Bxd5 Nb4 7. d3 c6 $11) 6... Nb4 {[%emt 0:00:02]} 7. d3 {[%emt 0:00:01]} c6 {[%emt 0:00:03] [#]} ({Better is} 7... Nbxd5 $14 8. Nxd5 Nxd5) 8. dxc6 {[%emt 0:00:07]} (8. e4 $1 $16) 8... Nxd3+ $15 {[%emt 0:00:08]} 9. Ke2 {[%emt 0:00:08]} (9. Kf1 $15 e4 10. Nh3) 9... e4 $17 {[%emt 0:00:13] Black is more active.} 10. cxb7 {[%emt 0:00:18]} Bxb7 {[%emt 0:00:03] ...Qd7 would now be deadly.} 11. f3 $2 {[%emt 0:00:25][%mdl 8192] Loses the game.} (11. Nh3 $17) 11... Be7 {[%emt 0:00:39]} (11... Qb6 $142 12. fxe4 fxe4 (12... Nxb2 $2 13. Qb3 $19)) 12. Qb3 $2 {[%emt 0:01:33]} (12. Qa4+ Nd7 13. fxe4) 12... Rb8 {[%emt 0:00:26]} 13. Qa4+ {[%emt 0:01:20]} Kf8 {[%emt 0:00:56]} 14. fxe4 {[%emt 0:01:20]} fxe4 {[%emt 0:00:10]} (14... Nc5 $142 15. Qd4 Qb6 (15... Bxe4 16. Nxe4 Qxd4 17. exd4 $16) (15... fxe4 16. Qxd8+ Rxd8 17. Kf1 $17) (15... Nfxe4 16. Bxe4 Nxe4 17. Qxd8+ Bxd8 18. Nxe4 $17)) 15. Nxe4 $2 {[%emt 0:01:26]} (15. Kf1) 15... Qd5 {[%emt 0:00:49] [#] And now ...Nb4 would win.} 16. Nxf6 {[%emt 0:01:00]} Nxc1+ {[%emt 0:00:07]} (16... Qxg2+ $142 17. Kxd3 gxf6 (17... Qxh1 $2 18. Nd7+ Kf7 19. Qc4+ Bd5 20. Qf4+ Bf6 21. Nxb8 $19) 18. Qc4 Rc8 (18... Qxh1 $2 19. Ne2 $19) 19. Qxc8+ Bxc8 20. e4 Qxh1 21. b4 Ba6+ (21... Qxg1 $2 22. Bh6+ Kf7 23. Rxg1 $19) 22. Kc3 Qxe4 (22... Qxg1 $2 23. Bh6+ Kf7 24. Rxg1 $19) 23. Ba3 Qd3+ 24. Kb2 Qd4+ 25. Kc2 Kf7 (25... Qxa1 {gets mated.} 26. Nf3 Kf7 27. Bb2 Rc8+ 28. Kd2 Qxb2+ 29. Ke3 Rc3+ 30. Kf4 Qxb4+ 31. Nd4 Qxd4+ 32. Kf5 Rf3#) 26. Rc1 Rc8+ (26... Bxb4 27. Kb3 Qd3+ 28. Kb2 Bxa3+ 29. Ka1 Qd4+ 30. Rc3 Qxc3+ 31. Kb1 Bd3#) 27. Kb3 Bc4+ 28. Rxc4 Qxc4+ (28... Rxc4 {is a self mate.} 29. Ne2 Qd3+ 30. Kb2 Rc2+ 31. Kb1 Rxe2+ 32. Ka1 Qd1+ 33. Bc1 Qxc1#) 29. Ka4 Rc6 30. h4 Ra6#) 17. Rxc1 $19 {[%emt 0:00:17]} Qxg2+ {[%emt 0:00:04]} (17... gxf6 $2 {too greedy.} 18. Bxd5 Bxd5 19. Nf3 $18) 18. Ke1 {[%emt 0:00:33]} gxf6 {[%emt 0:00:32]} 19. Qf4 {[%emt 0:02:32]} Kf7 {[%emt 0:00:50][%cal Ob7a6] ( -> ...Ba6!)} 20. a3 {[%emt 0:02:22]} Qxh1 {[%emt 0:00:12] Black mates.} 21. Qf2 {[%emt 0:01:02]} Rbc8 {[%emt 0:00:31]} 22. Kd2 {[%emt 0:00:50]} Rhd8+ {[%emt 0:00:07]} 23. Ke2 {[%emt 0:00:21]} Ba6+ {[%emt 0:00:06]} 24. Rc4 {[%emt 0:00:45]} Rxc4 {[%emt 0:00:11] Weighted Error Value: White=1.34/Black=0.72.  Loses game:     	White=1     	---        Mistake:       	White=4     	Black=3      Inaccurate:     	White=1     	---        OK:         	White=2     	Black=2      Best:        	White=1     	Black=2} 0-1

[Event "Wuerttemberg Rapid Teams 2024"]
[Site "B?blingen, Germany"]
[Date "2024.04.13"]
[Round "3.37"]
[White "Mayr, Florian"]
[Black "Li, Yunqi"]
[Result "1-0"]
[ECO "A41"]
[WhiteElo "2077"]
[BlackElo "1940"]
[Annotator "RC"]
[PlyCount "69"]
[EventDate "2024.04.13"]
[EventType "team-tourn"]
[SourceTitle "playchess.com"]
[Source "ChessBase"]
[SourceQuality "1"]
[TimeControl "900+5"]

1. d4 {[%emt 0:00:03]} d6 {[%emt 0:00:03]} 2. c4 {[%emt 0:00:03]} c6 {[%emt 0:00:03]} 3. Nc3 {[%emt 0:00:03]} g6 {[%emt 0:00:01]} 4. e4 {[%emt 0:00:01]} h5 {[%emt 0:00:02]} 5. Nf3 {[%emt 0:00:04]} Bg7 {[%emt 0:00:03]} 6. Be2 {[%emt 0:00:01]} Nd7 {[%emt 0:00:05]} 7. Be3 {[%emt 0:00:15]} Ngf6 {[%emt 0:00:05]} 8. h3 {[%emt 0:00:02]} Qc7 {[%emt 0:00:03]} 9. O-O {[%emt 0:00:03]} e5 {[%emt 0:00:03]} 10. b4 {[%emt 0:01:13]} O-O {[%emt 0:00:50]} 11. d5 {[%emt 0:01:07]} a5 {[%emt 0:01:04]} 12. a3 {[%emt 0:00:18]} Ne8 {[%emt 0:01:29]} 13. Nd2 {[%emt 0:00:21]} f5 {[%emt 0:00:03]} 14. f3 {[%emt 0:00:01]} f4 {[%emt 0:00:10]} 15. Bf2 {[%emt 0:00:02]} g5 {[%emt 0:00:08]} 16. Nb3 {[%emt 0:00:09]} axb4 {[%emt 0:00:07]} 17. axb4 {[%emt 0:00:02]} Rxa1 {[%emt 0:00:08]} 18. Qxa1 {[%emt 0:00:05]} Ndf6 {[%emt 0:00:12]} 19. Qa5 {[%emt 0:00:55]} Qf7 {[%emt 0:00:05]} 20. c5 {[%emt 0:00:43]} g4 {[%emt 0:02:21]} 21. fxg4 {[%emt 0:01:24]} hxg4 {[%emt 0:00:02]} 22. hxg4 {[%emt 0:00:04]} Bxg4 {[%emt 0:01:55]} 23. Bxg4 {[%emt 0:00:06]} Nxg4 {[%emt 0:00:03]} 24. Nd2 {[%emt 0:00:10]} Qg6 {[%emt 0:03:21]} 25. Nf3 {[%emt 0:01:00]} cxd5 {[%emt 0:01:00]} 26. cxd6 {[%emt 0:00:56]} dxe4 {[%emt 0:01:59]} 27. Qd5+ {[%emt 0:00:05]} Kh8 {[%emt 0:00:22]} 28. Nxe4 {[%emt 0:00:05]} Nxf2 {[%emt 0:00:16]} 29. Kxf2 {[%emt 0:00:36]} Nf6 {[%emt 0:00:04]} 30. Rh1+ {[%emt 0:00:01]} Bh6 {[%emt 0:00:02]} 31. Nxf6 {[%emt 0:00:03]} Qxf6 {[%emt 0:00:45]} 32. Nxe5 {[%emt 0:02:40]} Kg7 {[%emt 0:00:03]} 33. d7 {[%emt 0:00:22]} Bg5 {[%emt 0:00:14]} 34. Qxb7 {[%emt 0:02:35]} Qxe5 {[%emt 0:00:15]} 35. d8=Q+ {[%emt 0:00:05]} 1-0

[Event "Wuerttemberg Rapid Teams 2024"]
[Site "B?blingen, Germany"]
[Date "2024.04.13"]
[Round "3.38"]
[White "Eitel, Lukas"]
[Black "Bodriyenko, Markiyan"]
[Result "1/2-1/2"]
[ECO "A80"]
[WhiteElo "1825"]
[BlackElo "1728"]
[Annotator "NA RC COMBH"]
[PlyCount "81"]
[EventDate "2024.04.13"]
[EventType "team-tourn"]
[SourceTitle "playchess.com"]
[Source "ChessBase"]
[SourceQuality "1"]
[TimeControl "900+5"]

1. d4 {[%emt 0:00:02]} f5 {[%emt 0:00:01]} 2. h3 {[%emt 0:00:17]} d5 {[%emt 0:00:01]} 3. Nf3 {[%emt 0:00:16]} Nf6 {[%emt 0:00:04]} 4. c4 {[%emt 0:00:16]} Be6 {[%emt 0:00:23]} 5. cxd5 {[%emt 0:00:06]} Nxd5 {[%emt 0:00:21]} 6. Nc3 {[%emt 0:01:05]} c6 {[%emt 0:00:13]} 7. Qb3 {[%emt 0:01:06]} Qc8 {[%emt 0:00:48]} 8. Qc2 {[%emt 0:00:50]} h6 {[%emt 0:01:37]} 9. a3 {[%emt 0:00:20]} Nd7 {[%emt 0:00:11]} 10. e3 {[%emt 0:00:46]} N7f6 {[%emt 0:02:34]} 11. Bd3 {[%emt 0:00:12]} g5 {[%emt 0:00:27]} 12. Ne5 {[%emt 0:00:37]} Nxc3 {[%emt 0:01:53]} 13. bxc3 {[%emt 0:00:12]} Ne4 {[%emt 0:00:20]} 14. Bxe4 {[%emt 0:00:44]} fxe4 {[%emt 0:00:01]} 15. Qxe4 {[%emt 0:00:17]} Bf5 {[%emt 0:00:01]} 16. Qf3 {[%emt 0:00:23]} Bg7 {[%emt 0:00:02]} 17. Qh5+ {[%emt 0:00:54]} Kd8 {[%emt 0:00:03]} 18. Nf7+ {[%emt 0:00:20]} Kd7 {[%emt 0:00:24]} 19. Nxh8 {[%emt 0:00:21]} Qxh8 {[%emt 0:00:03]} 20. O-O {[%emt 0:00:23]} Rf8 {[%emt 0:00:07]} 21. Re1 {[%emt 0:00:44]} Qh7 {[%emt 0:00:12]} 22. Qe2 {[%emt 0:00:21]} Bd3 {[%emt 0:00:10]} 23. Qa2 {[%emt 0:01:13]} h5 {[%emt 0:00:53]} 24. e4 {[%emt 0:00:24]} g4 {[%emt 0:01:22]} 25. Qd2 {[%emt 0:01:21]} Bxe4 {[%emt 0:00:44]} 26. Qe3 {[%emt 0:00:12]} Bd5 {[%emt 0:00:29]} 27. Qxe7+ {[%emt 0:00:05]} Kc8 {[%emt 0:00:01]} 28. h4 {[%emt 0:01:02]} Qf5 {[%emt 0:00:39]} 29. Re2 {[%emt 0:00:43]} g3 {[%emt 0:01:22]} 30. Be3 {[%emt 0:01:15]} Bh6 {[%emt 0:00:30]} 31. Bxh6 {[%emt 0:00:16]} gxf2+ {[%emt 0:00:03]} 32. Kf1 {[%emt 0:00:17]} Bxg2+ {[%emt 0:00:12]} 33. Kxg2 {[%emt 0:00:17]} f1=Q+ {[%emt 0:00:32]} 34. Rxf1 {[%emt 0:00:03]} Qxf1+ {[%emt 0:00:02]} 35. Kh2 {[%emt 0:00:11]} Rf2+ {[%emt 0:00:27]} 36. Rxf2 {[%emt 0:00:03]} Qxf2+ {[%emt 0:00:01]} 37. Kh3 {[%emt 0:00:04]} Qf3+ {[%emt 0:00:05]} 38. Kh2 {[%emt 0:00:04]} Qf2+ {[%emt 0:00:01]} 39. Kh3 {[%emt 0:00:06]} Qf3+ {[%emt 0:00:01]} 40. Kh2 {[%emt 0:00:01]} Qf2+ 41. Kh3 {[%emt 0:00:05]} 1/2-1/2

[Event "Wuerttemberg Rapid Teams 2024"]
[Site "B?blingen, Germany"]
[Date "2024.04.13"]
[Round "3.40"]
[White "Merkel, Philip"]
[Black "Retzlaff, Nick"]
[Result "0-1"]
[ECO "B22"]
[WhiteElo "1726"]
[BlackElo "1707"]
[Annotator "NA RC COMBH"]
[PlyCount "104"]
[EventDate "2024.04.13"]
[EventType "team-tourn"]
[SourceTitle "playchess.com"]
[Source "ChessBase"]
[SourceQuality "1"]
[TimeControl "900+5"]

1. e4 {[%emt 0:00:02]} c5 {[%emt 0:00:01]} 2. c3 {[%emt 0:00:01]} e6 {[%emt 0:00:03]} 3. d4 {[%emt 0:00:01]} cxd4 {[%emt 0:00:01]} 4. cxd4 {[%emt 0:00:02]} Nc6 {[%emt 0:00:04]} 5. Nc3 {[%emt 0:00:11]} d5 {[%emt 0:00:07]} 6. e5 {[%emt 0:00:02]} Nge7 {[%emt 0:00:02]} 7. f4 {[%emt 0:00:29]} Nf5 {[%emt 0:00:05]} 8. Nf3 {[%emt 0:00:00]} Bb4 {[%emt 0:00:06]} 9. a3 {[%emt 0:00:19]} Ba5 {[%emt 0:00:05]} 10. b4 {[%emt 0:00:02]} Bb6 {[%emt 0:00:01]} 11. Ne2 {[%emt 0:00:31]} O-O {[%emt 0:01:19]} 12. Bb2 {[%emt 0:00:14]} Ne3 {[%emt 0:00:04]} 13. Qd3 {[%emt 0:00:16]} Nc4 {[%emt 0:00:07]} 14. Ng5 {[%emt 0:03:07]} g6 {[%emt 0:00:44]} 15. Qh3 {[%emt 0:02:28]} h5 {[%emt 0:00:48]} 16. Bc3 {[%emt 0:01:31]} f6 {[%emt 0:00:16]} 17. Nxe6 {[%emt 0:01:24]} Qe7 {[%emt 0:00:10]} 18. f5 {[%emt 0:00:47]} Bxe6 {[%emt 0:00:08]} 19. fxe6 {[%emt 0:00:03]} fxe5 {[%emt 0:00:03]} 20. dxe5 {[%emt 0:00:16]} d4 {[%emt 0:00:15]} 21. Nxd4 {[%emt 0:01:26]} Nxd4 {[%emt 0:00:08]} 22. Bxc4 {[%emt 0:01:18]} Nc2+ {[%emt 0:00:05]} 23. Ke2 {[%emt 0:00:01]} Rf2+ {[%emt 0:00:15]} 24. Kd1 {[%emt 0:00:31]} Rd8+ {[%emt 0:00:04]} 25. Kc1 {[%emt 0:00:01]} Qg5+ {[%emt 0:00:05]} 26. Kb1 {[%emt 0:00:31]} Qe7 {[%emt 0:01:10]} 27. Rf1 {[%emt 0:00:29]} Nxa1 {[%emt 0:00:10]} 28. Rxf2 {[%emt 0:00:11]} Rd1+ {[%emt 0:00:11]} 29. Kb2 {[%emt 0:00:08]} Bxf2 {[%emt 0:00:02]} 30. Qf3 {[%emt 0:00:13]} Rd8 {[%emt 0:00:58]} 31. Qxf2 {[%emt 0:00:17]} Rc8 {[%emt 0:00:19]} 32. Qf7+ {[%emt 0:00:23]} Qxf7 {[%emt 0:00:08]} 33. exf7+ {[%emt 0:00:01]} Kf8 {[%emt 0:00:02]} 34. Bd5 {[%emt 0:00:06]} b5 {[%emt 0:00:16]} 35. e6 {[%emt 0:00:04]} Ke7 {[%emt 0:00:10]} 36. Bd2 {[%emt 0:00:02]} Rc2+ {[%emt 0:00:03]} 37. Kb1 {[%emt 0:00:04]} Rxd2 {[%emt 0:00:02]} 38. Kxa1 {[%emt 0:00:01]} Rxd5 {[%emt 0:00:01]} 39. Kb2 {[%emt 0:00:01]} Rf5 {[%emt 0:00:02]} 40. Kc3 {[%emt 0:00:02]} Kxe6 {[%emt 0:00:01]} 41. Kd4 {[%emt 0:00:02]} Rxf7 {[%emt 0:00:01]} 42. Kc5 {[%emt 0:00:01]} Rf5+ {[%emt 0:00:09]} 43. Kc6 {[%emt 0:00:01]} Rf2 {[%emt 0:00:22]} 44. Kxb5 {[%emt 0:00:04]} Rxg2 {[%emt 0:00:04]} 45. a4 {[%emt 0:00:03]} Kd6 {[%emt 0:00:02]} 46. Ka6 {[%emt 0:00:01]} Ra2 {[%emt 0:00:03]} 47. a5 {[%emt 0:00:02]} Kc6 {[%emt 0:00:05]} 48. b5+ {[%emt 0:00:01]} Kc5 {[%emt 0:00:06]} 49. h3 {[%emt 0:00:23]} g5 {[%emt 0:00:04]} 50. h4 {[%emt 0:00:21]} gxh4 {[%emt 0:00:03]} 51. b6 {[%emt 0:00:04]} axb6 {[%emt 0:00:05]} 52. Kb7 {[%emt 0:00:07]} Rxa5 {[%emt 0:00:03]} 0-1

[Event "Wuerttemberg Rapid Teams 2024"]
[Site "B?blingen, Germany"]
[Date "2024.04.13"]
[Round "4.1"]
[White "Zuferi, Enis"]
[Black "Koelle, Tobias"]
[Result "1-0"]
[ECO "D38"]
[WhiteElo "2406"]
[BlackElo "2467"]
[Annotator "RC"]
[PlyCount "95"]
[EventDate "2024.04.13"]
[EventType "team-tourn"]
[SourceTitle "playchess.com"]
[Source "ChessBase"]
[SourceQuality "1"]
[TimeControl "900+5"]

1. d4 {[%emt 0:00:02]} Nf6 {[%emt 0:00:01]} 2. c4 {[%emt 0:00:02]} e6 {[%emt 0:00:01]} 3. Nf3 {[%emt 0:00:02]} d5 {[%emt 0:00:01]} 4. Nc3 {[%emt 0:00:04]} Bb4 {[%emt 0:00:02]} 5. Bg5 {[%emt 0:00:02]} h6 {[%emt 0:00:00]} 6. Bxf6 {[%emt 0:00:01]} Qxf6 {[%emt 0:00:01]} 7. Qa4+ {[%emt 0:00:00]} Nc6 {[%emt 0:00:02]} 8. e3 {[%emt 0:00:01]} O-O {[%emt 0:00:12]} 9. Rc1 {[%emt 0:00:01]} Rd8 {[%emt 0:01:30]} 10. Be2 {[%emt 0:00:03]} dxc4 {[%emt 0:02:21]} 11. Qb5 {[%emt 0:00:01]} Bd6 {[%emt 0:01:58]} 12. Qxc4 {[%emt 0:00:34]} Qg6 {[%emt 0:00:46]} 13. O-O {[%emt 0:00:22]} e5 {[%emt 0:00:02]} 14. d5 {[%emt 0:00:22]} Ne7 {[%emt 0:00:02]} 15. Nb5 {[%emt 0:01:52]} Bd7 {[%emt 0:01:36]} 16. Nxd6 {[%emt 0:00:07]} cxd6 {[%emt 0:00:01]} 17. Nd2 {[%emt 0:00:35]} Rac8 {[%emt 0:01:48]} 18. Qb3 {[%emt 0:00:03]} b6 {[%emt 0:00:00]} 19. e4 {[%emt 0:01:28]} Qg5 {[%emt 0:00:22]} 20. Qe3 {[%emt 0:00:42]} Qh4 {[%emt 0:02:00]} 21. Ba6 {[%emt 0:00:52]} Rc5 {[%emt 0:01:49]} 22. b4 {[%emt 0:00:13]} Rxc1 {[%emt 0:00:01]} 23. Rxc1 {[%emt 0:00:01]} Bc8 {[%emt 0:01:05]} 24. g3 {[%emt 0:00:02]} Qg5 {[%emt 0:00:39]} 25. Qxg5 {[%emt 0:00:14]} hxg5 {[%emt 0:00:01]} 26. Bd3 {[%emt 0:00:03]} Bh3 {[%emt 0:00:11]} 27. Ba6 {[%emt 0:00:43]} Bc8 {[%emt 0:00:04]} 28. Be2 {[%emt 0:00:01]} Bh3 {[%emt 0:00:10]} 29. g4 {[%emt 0:00:36]} Ng6 {[%emt 0:00:03]} 30. f3 {[%emt 0:00:15]} Nf4 {[%emt 0:00:17]} 31. Ba6 {[%emt 0:00:02]} Rd7 {[%emt 0:00:20]} 32. Rc8+ {[%emt 0:00:25]} Kh7 {[%emt 0:00:01]} 33. Bb5 {[%emt 0:00:02]} Re7 {[%emt 0:00:11]} 34. Nc4 {[%emt 0:00:09]} Ne2+ {[%emt 0:00:07]} 35. Kf2 {[%emt 0:00:01]} Nd4 {[%emt 0:00:01]} 36. Bc6 {[%emt 0:00:06]} f5 {[%emt 0:00:08]} 37. gxf5 {[%emt 0:00:11]} g4 {[%emt 0:00:06]} 38. fxg4 {[%emt 0:00:15]} Bxg4 {[%emt 0:00:01]} 39. Be8 {[%emt 0:00:01]} Kh6 {[%emt 0:00:11]} 40. Bg6 {[%emt 0:00:05]} Kg5 {[%emt 0:00:01]} 41. Nxd6 {[%emt 0:00:12]} Kf4 {[%emt 0:00:02]} 42. h4 {[%emt 0:00:34]} Nf3 {[%emt 0:00:11]} 43. h5 {[%emt 0:00:07]} Nd2 {[%emt 0:00:02]} 44. Rc2 {[%emt 0:00:13]} Nf3 {[%emt 0:00:10]} 45. h6 {[%emt 0:00:11]} gxh6 {[%emt 0:00:01]} 46. f6 {[%emt 0:00:01]} Rd7 {[%emt 0:00:05]} 47. f7 {[%emt 0:00:01]} Rd8 {[%emt 0:00:03]} 48. Ne8 {[%emt 0:00:01]} 1-0

[Event "Wuerttemberg Rapid Teams 2024"]
[Site "B?blingen, Germany"]
[Date "2024.04.13"]
[Round "4.2"]
[White "Huber, Philipp"]
[Black "Deuer, Marius"]
[Result "0-1"]
[ECO "D00"]
[WhiteElo "2306"]
[BlackElo "2439"]
[Annotator "RC"]
[PlyCount "64"]
[EventDate "2024.04.13"]
[EventType "team-tourn"]
[SourceTitle "playchess.com"]
[Source "ChessBase"]
[SourceQuality "1"]
[TimeControl "900+5"]

1. d4 {[%emt 0:00:01]} Nf6 {[%emt 0:00:02]} 2. Bg5 {[%emt 0:00:02]} d5 {[%emt 0:00:06]} 3. Bxf6 {[%emt 0:00:04]} exf6 {[%emt 0:00:03]} 4. e3 {[%emt 0:00:03]} Be6 {[%emt 0:00:03]} 5. Ne2 {[%emt 0:00:04]} Nd7 {[%emt 0:00:02]} 6. Nf4 {[%emt 0:00:03]} Bd6 {[%emt 0:01:25]} 7. Nxe6 {[%emt 0:00:37]} fxe6 {[%emt 0:00:02]} 8. Qg4 {[%emt 0:00:01]} Kf7 {[%emt 0:00:26]} 9. c4 {[%emt 0:00:05]} c6 {[%emt 0:00:48]} 10. Nc3 {[%emt 0:00:05]} f5 {[%emt 0:00:03]} 11. Qf3 {[%emt 0:00:09]} Nf6 {[%emt 0:00:04]} 12. h3 {[%emt 0:00:14]} h5 {[%emt 0:00:31]} 13. c5 {[%emt 0:00:35]} Bc7 {[%emt 0:00:05]} 14. Bd3 {[%emt 0:00:09]} b6 {[%emt 0:00:25]} 15. cxb6 {[%emt 0:00:23]} axb6 {[%emt 0:00:02]} 16. Ke2 {[%emt 0:00:01]} g5 {[%emt 0:01:02]} 17. g4 {[%emt 0:00:14]} hxg4 {[%emt 0:00:10]} 18. hxg4 {[%emt 0:00:01]} fxg4 {[%emt 0:00:02]} 19. Qg2 {[%emt 0:00:03]} c5 {[%emt 0:00:06]} 20. Nb5 {[%emt 0:00:35]} Qd7 {[%emt 0:01:00]} 21. a4 {[%emt 0:00:01]} cxd4 {[%emt 0:00:51]} 22. exd4 {[%emt 0:02:02]} Bf4 {[%emt 0:00:02]} 23. Rxh8 {[%emt 0:01:59]} Rxh8 {[%emt 0:00:01]} 24. Rh1 {[%emt 0:00:01]} Rh4 {[%emt 0:00:03]} 25. f3 {[%emt 0:00:24]} g3 {[%emt 0:00:26]} 26. Rxh4 {[%emt 0:00:09]} gxh4 {[%emt 0:00:01]} 27. Qh3 {[%emt 0:00:01]} Qc8 {[%emt 0:00:12]} 28. Nc3 {[%emt 0:00:43]} Qg8 {[%emt 0:00:46]} 29. Kf1 {[%emt 0:00:04]} Qg5 {[%emt 0:00:01]} 30. Ne2 {[%emt 0:00:09]} Bd6 {[%emt 0:00:31]} 31. Ba6 {[%emt 0:00:27]} Qe3 {[%emt 0:00:11]} 32. Qg2 {[%emt 0:00:15]} h3 {[%emt 0:00:02]} 0-1

[Event "Wuerttemberg Rapid Teams 2024"]
[Site "B?blingen, Germany"]
[Date "2024.04.13"]
[Round "4.3"]
[White "Degenhard, Simon"]
[Black "Kocharin, Timur"]
[Result "1-0"]
[ECO "D41"]
[WhiteElo "2204"]
[BlackElo "2250"]
[Annotator "RC"]
[PlyCount "107"]
[EventDate "2024.04.13"]
[EventType "team-tourn"]
[SourceTitle "playchess.com"]
[Source "ChessBase"]
[SourceQuality "1"]
[TimeControl "900+5"]

1. d4 {[%emt 0:00:11]} Nf6 {[%emt 0:00:01]} 2. c4 {[%emt 0:00:02]} e6 {[%emt 0:00:02]} 3. Nf3 {[%emt 0:00:01]} d5 {[%emt 0:00:02]} 4. g3 {[%emt 0:00:19]} Be7 {[%emt 0:00:10]} 5. Bg2 {[%emt 0:00:02]} O-O {[%emt 0:00:04]} 6. Nc3 {[%emt 0:00:02]} c5 {[%emt 0:00:02]} 7. dxc5 {[%emt 0:00:44]} Bxc5 {[%emt 0:00:05]} 8. cxd5 {[%emt 0:00:08]} Nxd5 {[%emt 0:00:02]} 9. Nxd5 {[%emt 0:00:16]} exd5 {[%emt 0:00:02]} 10. O-O {[%emt 0:00:06]} Nc6 {[%emt 0:00:17]} 11. a3 {[%emt 0:00:40]} Bf5 {[%emt 0:00:30]} 12. b4 {[%emt 0:00:10]} Bb6 {[%emt 0:00:04]} 13. Bb2 {[%emt 0:00:06]} Be4 {[%emt 0:00:22]} 14. Nd4 {[%emt 0:01:00]} Re8 {[%emt 0:00:25]} 15. Nxc6 {[%emt 0:00:27]} bxc6 {[%emt 0:00:03]} 16. Rc1 {[%emt 0:00:02]} Qd7 {[%emt 0:01:12]} 17. e3 {[%emt 0:00:06]} a5 {[%emt 0:01:01]} 18. Bd4 {[%emt 0:00:29]} Bxd4 {[%emt 0:00:13]} 19. Qxd4 {[%emt 0:00:04]} axb4 {[%emt 0:00:14]} 20. axb4 {[%emt 0:00:05]} Rab8 {[%emt 0:00:12]} 21. Rfd1 {[%emt 0:03:10]} Bxg2 {[%emt 0:00:13]} 22. Kxg2 {[%emt 0:00:02]} h5 {[%emt 0:01:02]} 23. h4 {[%emt 0:01:53]} g6 {[%emt 0:00:02]} 24. Rc5 {[%emt 0:01:10]} Re6 {[%emt 0:01:05]} 25. e4 {[%emt 0:00:40]} Qb7 {[%emt 0:01:10]} 26. exd5 {[%emt 0:00:18]} cxd5 {[%emt 0:00:04]} 27. b5 {[%emt 0:00:19]} Rb6 {[%emt 0:00:18]} 28. Rb1 {[%emt 0:01:28]} Rd8 {[%emt 0:00:02]} 29. Kh2 {[%emt 0:00:20]} Rbd6 {[%emt 0:02:36]} 30. Rbc1 {[%emt 0:00:50]} Qb6 {[%emt 0:00:01]} 31. Kg1 {[%emt 0:00:29]} R6d7 {[%emt 0:01:02]} 32. Qd3 {[%emt 0:00:06]} Rb8 {[%emt 0:00:29]} 33. Rxd5 {[%emt 0:00:39]} Rxd5 {[%emt 0:02:15]} 34. Qxd5 {[%emt 0:00:02]} Qf6 {[%emt 0:01:25]} 35. Rc6 {[%emt 0:00:52]} Qa1+ {[%emt 0:00:14]} 36. Kh2 {[%emt 0:00:12]} Kg7 {[%emt 0:00:02]} 37. b6 {[%emt 0:00:16]} Qb2 {[%emt 0:00:03]} 38. Qc5 {[%emt 0:00:02]} Rb7 {[%emt 0:00:19]} 39. Kg2 {[%emt 0:00:15]} Rb8 {[%emt 0:00:14]} 40. Qd6 {[%emt 0:00:05]} Rb7 {[%emt 0:00:06]} 41. Rc8 {[%emt 0:00:12]} Qxb6 {[%emt 0:00:37]} 42. Qf8+ {[%emt 0:00:00]} Kf6 {[%emt 0:00:00]} 43. Rd8 {[%emt 0:00:12]} Qc6+ {[%emt 0:00:06]} 44. Kh2 {[%emt 0:00:02]} Rd7 {[%emt 0:00:01]} 45. Qh8+ {[%emt 0:00:02]} Kf5 {[%emt 0:00:08]} 46. Re8 {[%emt 0:00:04]} Rd5 {[%emt 0:00:07]} 47. Rc8 {[%emt 0:00:03]} Qb6 {[%emt 0:00:05]} 48. Rc2 {[%emt 0:00:02]} Rc5 {[%emt 0:00:08]} 49. Re2 {[%emt 0:00:04]} Qd6 {[%emt 0:00:02]} 50. Qe8 {[%emt 0:00:03]} Re5 {[%emt 0:00:01]} 51. Qc8+ {[%emt 0:00:02]} Kf6 {[%emt 0:00:02]} 52. Qc3 {[%emt 0:00:03]} Ke6 {[%emt 0:00:02]} 53. Ra2 {[%emt 0:00:08]} Kf6 {[%emt 0:00:06]} 54. f4 {[%emt 0:00:02]} 1-0

[Event "Wuerttemberg Rapid Teams 2024"]
[Site "B?blingen, Germany"]
[Date "2024.04.13"]
[Round "4.4"]
[White "Tschlatscher, Thomas"]
[Black "Junesch, Gerhard"]
[Result "0-1"]
[ECO "A05"]
[WhiteElo "2217"]
[BlackElo "2267"]
[Annotator "RC"]
[PlyCount "82"]
[EventDate "2024.04.13"]
[EventType "team-tourn"]
[SourceTitle "playchess.com"]
[Source "ChessBase"]
[SourceQuality "1"]
[TimeControl "900+5"]

1. b3 {[%emt 0:00:04]} b6 {[%emt 0:00:00]} 2. Bb2 {[%emt 0:00:01]} Bb7 {[%emt 0:00:01]} 3. Nf3 {[%emt 0:00:03]} Nf6 {[%emt 0:00:02]} 4. d4 {[%emt 0:00:01]} c5 {[%emt 0:00:16]} 5. e3 {[%emt 0:00:03]} e6 {[%emt 0:00:14]} 6. Be2 {[%emt 0:00:05]} Be7 {[%emt 0:00:10]} 7. dxc5 {[%emt 0:00:13]} bxc5 {[%emt 0:00:07]} 8. O-O {[%emt 0:00:02]} O-O {[%emt 0:00:10]} 9. c4 {[%emt 0:00:19]} d6 {[%emt 0:00:25]} 10. Nc3 {[%emt 0:00:20]} Nbd7 {[%emt 0:00:09]} 11. Qc2 {[%emt 0:00:58]} Qc7 {[%emt 0:00:40]} 12. Rad1 {[%emt 0:00:24]} Rfd8 {[%emt 0:00:37]} 13. Ng5 {[%emt 0:02:36]} Nf8 {[%emt 0:00:53]} 14. Bf3 {[%emt 0:00:19]} Ne8 {[%emt 0:01:58]} 15. Bxb7 {[%emt 0:02:54]} Qxb7 {[%emt 0:00:02]} 16. Nf3 {[%emt 0:00:11]} Bf6 {[%emt 0:02:19]} 17. e4 {[%emt 0:00:25]} Ng6 {[%emt 0:00:35]} 18. Rfe1 {[%emt 0:01:35]} Rd7 {[%emt 0:00:32]} 19. Na4 {[%emt 0:00:12]} Bxb2 {[%emt 0:00:25]} 20. Qxb2 {[%emt 0:00:02]} Rad8 {[%emt 0:00:49]} 21. Qe2 {[%emt 0:01:06]} Nf4 {[%emt 0:00:46]} 22. Qe3 {[%emt 0:00:20]} e5 {[%emt 0:00:06]} 23. Rd2 {[%emt 0:02:41]} Ne6 {[%emt 0:00:18]} 24. g3 {[%emt 0:00:09]} N8c7 {[%emt 0:00:38]} 25. Nc3 {[%emt 0:00:09]} Nd4 {[%emt 0:00:13]} 26. Nd5 {[%emt 0:01:14]} Rf8 {[%emt 0:01:12]} 27. Nxd4 {[%emt 0:00:00]} cxd4 {[%emt 0:00:19]} 28. Qg5 {[%emt 0:00:00]} f6 {[%emt 0:00:34]} 29. Qg4 {[%emt 0:00:00]} Nxd5 {[%emt 0:00:07]} 30. exd5 {[%emt 0:00:00]} Re7 {[%emt 0:00:11]} 31. f4 {[%emt 0:00:53]} a5 {[%emt 0:00:17]} 32. Kg2 {[%emt 0:00:04]} Rfe8 {[%emt 0:00:50]} 33. f5 {[%emt 0:00:10]} a4 {[%emt 0:00:15]} 34. Rb1 {[%emt 0:00:03]} Rb8 {[%emt 0:00:15]} 35. Qe4 {[%emt 0:00:06]} Rc7 {[%emt 0:00:09]} 36. g4 {[%emt 0:00:03]} Rxc4 {[%emt 0:00:09]} 37. bxc4 {[%emt 0:00:19]} Qxb1 {[%emt 0:00:01]} 38. Qe2 {[%emt 0:00:03]} h6 {[%emt 0:00:16]} 39. Kh3 {[%emt 0:00:03]} a3 {[%emt 0:00:07]} 40. c5 {[%emt 0:00:07]} dxc5 {[%emt 0:00:09]} 41. Qc4 {[%emt 0:00:01]} Qb4 {[%emt 0:00:11]} 0-1